Workbook

Sheet 总表
A1: 云岩区2019年公开招聘社区服务中心工作人员笔试、面试、总成绩及进入体检 人员名单汇总表
A2: 序号 | B2: 姓名 | C2: 岗位代码及名称 | D2: 准考证号 | E2: 笔试成绩（150分） | F2: 笔试折算成绩（百分制、按“四舍五入法”保留小数点后两位数字） | G2: 笔试成绩占60%进行计算，按“四舍五入法”保留小数点后两位数字） | H2: 面试成绩（100分） | I2: 面试成绩占40%进行计算，按“四舍五入法”保留小数点后两位数字） | J2: 总成绩（按笔试百分制成绩占60%、面试成绩占40%进行计算，按“四舍五入法”保留小数点后两位数字） | K2: 是否进入下一环节 | L2: 备注
A3: 1 | B3: 杨佳美 | C3: 01综合办公室工作人员 | D3: 91101211312 | E3: 115 | F3: 76.67 | G3: =F3*0.6 -> 46 | H3: 79.00 | I3: =H3*0.4 -> 31.6 | J3: =G3+I3 -> 77.6 | K3: 进入体检
A4: 2 | B4: 王宇 | C4: 01综合办公室工作人员 | D4: 91101210909 | E4: 110 | F4: 73.33 | G4: 44 | H4: 79.80 | I4: 31.92 | J4: 75.92 | K4: 进入体检
A5: 3 | B5: 李竹 | C5: 01综合办公室工作人员 | D5: 91101220228 | E5: 109.5 | F5: 73.00 | G5: 43.8 | H5: 79.80 | I5: 31.92 | J5: 75.72 | K5: 进入体检
A6: 4 | B6: 肖苏丹 | C6: 01综合办公室工作人员 | D6: 91101210322 | E6: 106 | F6: 70.67 | G6: 42.4 | H6: 83.20 | I6: 33.28 | J6: 75.68 | K6: 进入体检
A7: 5 | B7: 肖雨柔 | C7: 01综合办公室工作人员 | D7: 91101220311 | E7: 109 | F7: 72.67 | G7: 43.6 | H7: 80.00 | I7: 32 | J7: 75.6 | K7: 进入体检
A8: 6 | B8: 许博 | C8: 01综合办公室工作人员 | D8: 91101211210 | E8: 112.5 | F8: 75.00 | G8: 45 | H8: 75.60 | I8: 30.24 | J8: 75.24 | K8: 进入体检
A9: 7 | B9: 秦超 | C9: 01综合办公室工作人员 | D9: 91101211726 | E9: 105.5 | F9: 70.33 | G9: 42.2 | H9: 82.60 | I9: 33.04 | J9: 75.24 | K9: 进入体检
A10: 8 | B10: 刘奇 | C10: 01综合办公室工作人员 | D10: 91101211806 | E10: 105.5 | F10: 70.33 | G10: 42.2 | H10: 80.80 | I10: 32.32 | J10: 74.52 | K10: 进入体检
A11: 9 | B11: 沈梅 | C11: 01综合办公室工作人员 | D11: 91101211921 | E11: 106.5 | F11: 71.00 | G11: 42.6 | H11: 79.40 | I11: 31.76 | J11: 74.36 | K11: 进入体检
A12: 10 | B12: 刘婧馀 | C12: 01综合办公室工作人员 | D12: 91101212122 | E12: 105.5 | F12: 70.33 | G12: 42.2 | H12: 80.40 | I12: 32.16 | J12: 74.36 | K12: 进入体检
A13: 11 | B13: 邹佳雨 | C13: 01综合办公室工作人员 | D13: 91101210411 | E13: 103 | F13: 68.67 | G13: 41.2 | H13: 82.60 | I13: 33.04 | J13: 74.24
A14: 12 | B14: 冯玉玲 | C14: 01综合办公室工作人员 | D14: 91101211225 | E14: 106.5 | F14: 71.00 | G14: 42.6 | H14: 79.00 | I14: 31.6 | J14: 74.2
A15: 13 | B15: 汪敏 | C15: 01综合办公室工作人员 | D15: 91101211410 | E15: 107 | F15: 71.33 | G15: 42.8 | H15: 78.40 | I15: 31.36 | J15: 74.16
A16: 14 | B16: 余泽落 | C16: 01综合办公室工作人员 | D16: 91101211818 | E16: 105.5 | F16: 70.33 | G16: 42.2 | H16: 79.60 | I16: 31.84 | J16: 74.04
A17: 15 | B17: 文丹 | C17: 01综合办公室工作人员 | D17: 91101211119 | E17: 102 | F17: 68.00 | G17: 40.8 | H17: 83.00 | I17: 33.2 | J17: 74
A18: 16 | B18: 曾婧 | C18: 01综合办公室工作人员 | D18: 91101221206 | E18: 100 | F18: 66.67 | G18: 40 | H18: 83.60 | I18: 33.44 | J18: 73.44
A19: 17 | B19: 陈连芮 | C19: 01综合办公室工作人员 | D19: 91101211201 | E19: 105 | F19: 70.00 | G19: 42 | H19: 78.60 | I19: 31.44 | J19: 73.44
A20: 18 | B20: 刘艳红 | C20: 01综合办公室工作人员 | D20: 91101221404 | E20: 102.5 | F20: 68.33 | G20: 41 | H20: 80.80 | I20: 32.32 | J20: 73.32
A21: 19 | B21: 苏晓凤 | C21: 01综合办公室工作人员 | D21: 91101211707 | E21: 104.5 | F21: 69.67 | G21: 41.8 | H21: 78.20 | I21: 31.28 | J21: 73.08
A22: 20 | B22: 蒙冬 | C22: 01综合办公室工作人员 | D22: 91101212317 | E22: 104 | F22: 69.33 | G22: 41.6 | H22: 78.00 | I22: 31.2 | J22: 72.8
A23: 21 | B23: 董培元 | C23: 01综合办公室工作人员 | D23: 91101210927 | E23: 102 | F23: 68.00 | G23: 40.8 | H23: 79.80 | I23: 31.92 | J23: 72.72
A24: 22 | B24: 杨莹 | C24: 01综合办公室工作人员 | D24: 91101220113 | E24: 103 | F24: 68.67 | G24: 41.2 | H24: 78.60 | I24: 31.44 | J24: 72.64
A25: 23 | B25: 顾剑丹 | C25: 01综合办公室工作人员 | D25: 91101210404 | E25: 99.5 | F25: 66.53 | G25: 39.92 | H25: 81.20 | I25: 32.48 | J25: 72.4
A26: 24 | B26: 林晓乐 | C26: 01综合办公室工作人员 | D26: 91101210119 | E26: 100 | F26: 66.67 | G26: 40 | H26: 81.00 | I26: 32.4 | J26: 72.4
A27: 25 | B27: 杨盛意 | C27: 01综合办公室工作人员 | D27: 91101221019 | E27: 102 | F27: 68.00 | G27: 40.8 | H27: 77.00 | I27: 30.8 | J27: 71.6
A28: 26 | B28: 孙艺嘉 | C28: 01综合办公室工作人员 | D28: 91101210412 | E28: 100.5 | F28: 67.00 | G28: 40.2 | H28: 76.80 | I28: 30.72 | J28: 70.92
A29: 27 | B29: 张学林 | C29: 01综合办公室工作人员 | D29: 91101211406 | E29: 100 | F29: 66.67 | G29: 40 | H29: 76.80 | I29: 30.72 | J29: 70.72
A30: 28 | B30: 郑弦芳 | C30: 01综合办公室工作人员 | D30: 91101211127 | E30: 100.5 | F30: 67.00 | G30: 40.2 | H30: 75.40 | I30: 30.16 | J30: 70.36
A31: 29 | B31: 陈舟 | C31: 01综合办公室工作人员 | D31: 91101212408 | E31: 115 | F31: 76.67 | G31: 46 | H31: 缺考 | I31: 自动放弃，取消进入下一环节资格
A32: 30 | B32: 刘彬 | C32: 01综合办公室工作人员 | D32: 91101212206 | E32: 100.5 | F32: 67.00 | G32: 40.2 | H32: 缺考 | I32: 自动放弃，取消进入下一环节资格
A33: 31 | B33: 龙慧岭 | C33: 02综合办公室工作人员 | D33: 91101221620 | E33: 89.00 | F33: =E33*100/150 -> 59.33 | G33: 35.60 | H33: 78.80 | I33: =H33*0.4 -> 31.52 | J33: =G33+I33 -> 67.12 | K33: 进入体检
A34: 32 | B34: 冯忌 | C34: 02综合办公室工作人员 | D34: 91101221830 | E34: 85.00 | F34: 56.67 | G34: 34.00 | H34: 80.40 | I34: 32.16 | J34: 66.16 | K34: 进入体检
A35: 33 | B35: 周伟 | C35: 02综合办公室工作人员 | D35: 91101221820 | E35: 83.50 | F35: 55.67 | G35: 33.40 | H35: 81.40 | I35: 32.56 | J35: 65.96 | K35: 进入体检
A36: 34 | B36: 张兰 | C36: 02综合办公室工作人员 | D36: 91101221715 | E36: 80.00 | F36: 53.33 | G36: 32.00 | H36: 78.80 | I36: 31.52 | J36: 63.52 | K36: 进入体检
A37: 35 | B37: 牟丽娜 | C37: 02综合办公室工作人员 | D37: 91101221622 | E37: 77.00 | F37: 51.33 | G37: 30.80 | H37: 80.80 | I37: 32.32 | J37: 63.12 | K37: 进入体检
A38: 36 | B38: 刘亚玲 | C38: 02综合办公室工作人员 | D38: 91101221828 | E38: 83.50 | F38: 55.67 | G38: 33.40 | H38: 74.20 | I38: 29.68 | J38: 63.08 | K38: 进入体检
A39: 37 | B39: 周小虎 | C39: 02综合办公室工作人员 | D39: 91101221623 | E39: 78.00 | F39: 52.00 | G39: 31.20 | H39: 79.60 | I39: 31.84 | J39: 63.04 | K39: 进入体检
A40: 38 | B40: 代文静 | C40: 02综合办公室工作人员 | D40: 91101221829 | E40: 70.00 | F40: 46.67 | G40: 28.00 | H40: 85.60 | I40: 34.24 | J40: 62.24 | K40: 进入体检
A41: 39 | B41: 陈娜 | C41: 02综合办公室工作人员 | D41: 91101221705 | E41: 78.50 | F41: 52.33 | G41: 31.40 | H41: 77.00 | I41: 30.80 | J41: 62.2 | K41: 进入体检
A42: 40 | B42: 金美 | C42: 02综合办公室工作人员 | D42: 91101221704 | E42: 69.50 | F42: 46.33 | G42: 27.80 | H42: 84.20 | I42: 33.68 | J42: 61.48 | K42: 进入体检
A43: 41 | B43: 蔡璇 | C43: 02综合办公室工作人员 | D43: 91101221819 | E43: 75.50 | F43: 50.33 | G43: 30.20 | H43: 76.80 | I43: 30.72 | J43: 60.92
A44: 42 | B44: 李丹 | C44: 02综合办公室工作人员 | D44: 91101221807 | E44: 69.00 | F44: 46.00 | G44: 27.60 | H44: 81.60 | I44: 32.64 | J44: 60.24
A45: 43 | B45: 张映梅 | C45: 02综合办公室工作人员 | D45: 91101221602 | E45: 71.50 | F45: 47.67 | G45: 28.60 | H45: 78.40 | I45: 31.36 | J45: 59.96
A46: 44 | B46: 阮以文 | C46: 02综合办公室工作人员 | D46: 91101221718 | E46: 74.00 | F46: 49.33 | G46: 29.60 | H46: 75.60 | I46: 30.24 | J46: 59.84
A47: 45 | B47: 周兴龙 | C47: 02综合办公室工作人员 | D47: 91101221917 | E47: 70.50 | F47: 47.00 | G47: 28.20 | H47: 79.00 | I47: 31.60 | J47: 59.8
A48: 46 | B48: 贺卓君 | C48: 02综合办公室工作人员 | D48: 91101221624 | E48: 66.50 | F48: 44.33 | G48: 26.60 | H48: 82.80 | I48: 33.12 | J48: 59.72
A49: 47 | B49: 杨丽 | C49: 02综合办公室工作人员 | D49: 91101221827 | E49: 73.00 | F49: 48.67 | G49: 29.20 | H49: 75.80 | I49: 30.32 | J49: 59.52
A50: 48 | B50: 贾双琴 | C50: 02综合办公室工作人员 | D50: 91101221723 | E50: 72.00 | F50: 48.00 | G50: 28.80 | H50: 76.80 | I50: 30.72 | J50: 59.52
A51: 49 | B51: 刘敏 | C51: 02综合办公室工作人员 | D51: 91101221915 | E51: 69.00 | F51: 46.00 | G51: 27.60 | H51: 79.60 | I51: 31.84 | J51: 59.44
A52: 50 | B52: 胡瑛 | C52: 02综合办公室工作人员 | D52: 91101221815 | E52: 68.00 | F52: 45.33 | G52: 27.20 | H52: 78.80 | I52: 31.52 | J52: 58.72
A53: 51 | B53: 钟杰 | C53: 02综合办公室工作人员 | D53: 91101221817 | E53: 69.00 | F53: 46.00 | G53: 27.60 | H53: 74.40 | I53: 29.76 | J53: 57.36
A54: 52 | B54: 代良和 | C54: 02综合办公室工作人员 | D54: 91101221703 | E54: 70.00 | F54: 46.67 | G54: 28.00 | H54: 72.80 | I54: 29.12 | J54: 57.12
A55: 53 | B55: 刘雨婷 | C55: 02综合办公室工作人员 | D55: 91101221908 | E55: 67.50 | F55: 45.00 | G55: 27.00 | H55: 75.20 | I55: 30.08 | J55: 57.08
A56: 54 | B56: 王蕊 | C56: 02综合办公室工作人员 | D56: 91101221930 | E56: 68.50 | F56: 45.67 | G56: 27.40 | H56: 73.80 | I56: 29.52 | J56: 56.92
A57: 55 | B57: 陈开兰 | C57: 02综合办公室工作人员 | D57: 91101221713 | E57: 69.00 | F57: 46.00 | G57: 27.60 | H57: 73.20 | I57: 29.28 | J57: 56.88
A58: 56 | B58: 李秀敏 | C58: 02综合办公室工作人员 | D58: 91101221805 | E58: 70.00 | F58: 46.67 | G58: 28.00 | H58: 71.20 | I58: 28.48 | J58: 56.48
A59: 57 | B59: 刘玥 | C59: 02综合办公室工作人员 | D59: 91101221903 | E59: 68.00 | F59: 45.33 | G59: 27.20 | H59: 70.60 | I59: 28.24 | J59: 55.44
A60: 58 | B60: 李健 | C60: 02综合办公室工作人员 | D60: 91101221717 | E60: 67.50 | F60: 45.00 | G60: 27.00 | H60: 69.80 | I60: 27.92 | J60: 54.92
A61: 59 | B61: 邓敏 | C61: 02综合办公室工作人员 | D61: 91101221607 | E61: 66.50 | F61: 44.33 | G61: 26.60 | H61: 66.60 | I61: 26.64 | J61: 53.24
A62: 60 | B62: 陈芬 | C62: 02综合办公室工作人员 | D62: 91101221702 | E62: 66.50 | F62: 44.33 | G62: 26.60 | H62: 0.00 | I62: 0.00 | J62: 26.6
A63: 61 | B63: 潘锌铌 | C63: 03综合办公室工作人员 | D63: 91101222009 | E63: 85 | F63: 56.67 | G63: 34 | H63: 79 | I63: 31.6 | J63: 65.6 | K63: 进入体检
A64: 62 | B64: 徐海 | C64: 03综合办公室工作人员 | D64: 91101222016 | E64: 84.5 | F64: 56.33 | G64: 33.8 | H64: 77.4 | I64: 30.96 | J64: 64.76
A65: 63 | B65: 戴旑 | C65: 03综合办公室工作人员 | D65: 91101222018 | E65: 79.5 | F65: 53.00 | G65: 31.8 | H65: 75.6 | I65: 30.24 | J65: 62.04
A66: 64 | B66: 卢源源 | C66: 04社会服务部工作人员 | D66: 91101232025 | E66: 104 | F66: 69.33 | G66: 41.6 | H66: 85.60 | I66: 34.24 | J66: 75.84 | K66: 进入体检
A67: 65 | B67: 张桂兰 | C67: 04社会服务部工作人员 | D67: 91101231726 | E67: 102.5 | F67: 68.33 | G67: =F67*0.6 -> 41 | H67: 87.00 | I67: 34.8 | J67: 75.8 | K67: 进入体检
A68: 66 | B68: 文乔宇 | C68: 04社会服务部工作人员 | D68: 91101232510 | E68: 106 | F68: 70.67 | G68: 42.4 | H68: 83.20 | I68: 33.28 | J68: 75.68 | K68: 进入体检
A69: 67 | B69: 陈军 | C69: 04社会服务部工作人员 | D69: 91101230225 | E69: 107 | F69: 71.33 | G69: 42.8 | H69: 81.80 | I69: 32.72 | J69: 75.52 | K69: 进入体检
A70: 68 | B70: 周洲 | C70: 04社会服务部工作人员 | D70: 91101231616 | E70: 105.5 | F70: 70.33 | G70: 42.2 | H70: 83.00 | I70: 33.2 | J70: 75.4 | K70: 进入体检
A71: 69 | B71: 王诚 | C71: 04社会服务部工作人员 | D71: 91101231417 | E71: 102.5 | F71: 68.33 | G71: 41 | H71: 85.00 | I71: 34 | J71: 75 | K71: 进入体检
A72: 70 | B72: 陈囿伶 | C72: 04社会服务部工作人员 | D72: 91101232030 | E72: 105 | F72: 70.00 | G72: 42 | H72: 82.00 | I72: 32.8 | J72: 74.8 | K72: 进入体检
A73: 71 | B73: 陈江 | C73: 04社会服务部工作人员 | D73: 91101232217 | E73: 101.5 | F73: 67.67 | G73: 40.6 | H73: 85.00 | I73: 34 | J73: 74.6 | K73: 进入体检
A74: 72 | B74: 陈爱华 | C74: 04社会服务部工作人员 | D74: 91101231513 | E74: 101 | F74: 67.33 | G74: 40.4 | H74: 85.40 | I74: 34.16 | J74: 74.56 | K74: 进入体检
A75: 73 | B75: 陈彦廷 | C75: 04社会服务部工作人员 | D75: 91101231320 | E75: 102.5 | F75: 68.33 | G75: 41 | H75: 81.80 | I75: 32.72 | J75: 73.72 | K75: 进入体检
A76: 74 | B76: 周敏 | C76: 04社会服务部工作人员 | D76: 91101231821 | E76: 99.5 | F76: 66.33 | G76: 39.8 | H76: 83.20 | I76: 33.28 | J76: 73.08
A77: 75 | B77: 杨福丹 | C77: 04社会服务部工作人员 | D77: 91101222212 | E77: 99.5 | F77: 66.33 | G77: 39.8 | H77: 82.80 | I77: 33.12 | J77: 72.92
A78: 76 | B78: 张菊 | C78: 04社会服务部工作人员 | D78: 91101230811 | E78: 100 | F78: 66.67 | G78: 40 | H78: 82.20 | I78: 32.88 | J78: 72.88
A79: 77 | B79: 代志会 | C79: 04社会服务部工作人员 | D79: 91101232701 | E79: 100.5 | F79: 67.00 | G79: 40.2 | H79: 81.00 | I79: 32.4 | J79: 72.6
A80: 78 | B80: 张唯 | C80: 04社会服务部工作人员 | D80: 91101230626 | E80: 98 | F80: 65.33 | G80: 39.2 | H80: 81.40 | I80: 32.56 | J80: 71.76
A81: 79 | B81: 陈旖旎 | C81: 04社会服务部工作人员 | D81: 91101232017 | E81: 99 | F81: 66.00 | G81: 39.6 | H81: 80.20 | I81: 32.08 | J81: 71.68
A82: 80 | B82: 秦路丹 | C82: 04社会服务部工作人员 | D82: 91101230312 | E82: 99.5 | F82: 66.33 | G82: 39.8 | H82: 79.60 | I82: 31.84 | J82: 71.64
A83: 81 | B83: 秦青云 | C83: 04社会服务部工作人员 | D83: 91101232015 | E83: 99 | F83: 66.00 | G83: 39.6 | H83: 79.80 | I83: 31.92 | J83: 71.52
A84: 82 | B84: 郭红艳 | C84: 04社会服务部工作人员 | D84: 91101231807 | E84: 100 | F84: 66.67 | G84: 40 | H84: 78.60 | I84: 31.44 | J84: 71.44
A85: 83 | B85: 余文博 | C85: 04社会服务部工作人员 | D85: 91101232602 | E85: 105 | F85: 70.00 | G85: 42 | H85: 73.40 | I85: 29.36 | J85: 71.36
A86: 84 | B86: 马毅 | C86: 04社会服务部工作人员 | D86: 91101222202 | E86: 98 | F86: 65.33 | G86: 39.2 | H86: 80.20 | I86: 32.08 | J86: 71.28
A87: 85 | B87: 李梦涵 | C87: 04社会服务部工作人员 | D87: 91101233018 | E87: 99 | F87: 66.00 | G87: 39.6 | H87: 79.00 | I87: 31.6 | J87: 71.2
A88: 86 | B88: 夏帼英 | C88: 04社会服务部工作人员 | D88: 91101232013 | E88: 97.5 | F88: 65.00 | G88: 39 | H88: 80.20 | I88: 32.08 | J88: 71.08
A89: 87 | B89: 李瑞亿 | C89: 04社会服务部工作人员 | D89: 91101232106 | E89: 97.5 | F89: 65.00 | G89: 39 | H89: 80.00 | I89: 32 | J89: 71
A90: 88 | B90: 李婷钰 | C90: 04社会服务部工作人员 | D90: 91101222206 | E90: 103 | F90: 68.67 | G90: 41.2 | H90: 73.80 | I90: 29.52 | J90: 70.72
A91: 89 | B91: 王珊珊 | C91: 04社会服务部工作人员 | D91: 91101232321 | E91: 97.5 | F91: 65.00 | G91: 39 | H91: 78.80 | I91: 31.52 | J91: 70.52
A92: 90 | B92: 彭茂辉 | C92: 04社会服务部工作人员 | D92: 91101231301 | E92: 98 | F92: 65.33 | G92: 39.2 | H92: 76.20 | I92: 30.48 | J92: 69.68
A93: 91 | B93: 闫英楠 | C93: 04社会服务部工作人员 | D93: 91101232904 | E93: 98 | F93: 65.33 | G93: 39.2 | H93: 54.20 | I93: 21.68 | J93: 60.88
A94: 92 | B94: 潘富 | C94: 04社会服务部工作人员 | D94: 91101232516 | E94: 108 | F94: 72.00 | G94: 43.2 | H94: 缺考 | I94: 自动放弃，取消进入下一环节资格
A95: 93 | B95: 邓理想 | C95: 04社会服务部工作人员 | D95: 91101230812 | E95: 102 | F95: 68.00 | G95: 40.8 | H95: 缺考 | I95: 自动放弃，取消进入下一环节资格
A96: 94 | B96: 陈紫元 | C96: 04社会服务部工作人员 | D96: 91101231917 | E96: 102 | F96: 68.00 | G96: 40.8 | H96: 缺考 | I96: 自动放弃，取消进入下一环节资格
A97: 95 | B97: 杨丹 | C97: 04社会服务部工作人员 | D97: 91101231703 | E97: 101.5 | F97: =E97*100/150 -> 67.67 | G97: 40.6 | H97: 缺考 | I97: 自动放弃，取消进入下一环节资格
A98: 96 | B98: 陈煊泠 | C98: 04社会服务部工作人员 | D98: 91101230207 | E98: 97.5 | F98: 65.00 | G98: 39 | H98: 缺考 | I98: 自动放弃，取消进入下一环节资格
A99: 97 | B99: 陆丹 | C99: 04社会服务部工作人员 | D99: 91101230217 | E99: 97.5 | F99: 65.00 | G99: 39 | H99: 缺考 | I99: 自动放弃，取消进入下一环节资格
A100: 98 | B100: 马丽娟 | C100: 04社会服务部工作人员 | D100: 91101230803 | E100: 97.5 | F100: 65.00 | G100: 39 | H100: 缺考 | I100: 自动放弃，取消进入下一环节资格
A101: 99 | B101: 马兵 | C101: 05社会服务部工作人员 | D101: 91101233113 | E101: 95.5 | F101: 63.67 | G101: 38.2 | H101: 81.6 | I101: =H101*0.4 -> 32.64 | J101: =G101+I101 -> 70.84 | K101: 进入体检
A102: 100 | B102: 焦丹 | C102: 05社会服务部工作人员 | D102: 91101233110 | E102: 94.5 | F102: 63.00 | G102: 37.8 | H102: 80.2 | I102: 32.08 | J102: 69.88
A103: 101 | B103: 李吉雁 | C103: 05社会服务部工作人员 | D103: 91101233102 | E103: 83 | F103: 55.33 | G103: 33.2 | H103: 76.4 | I103: 30.56 | J103: 63.76
A104: 102 | B104: 吴萍 | C104: 06城乡管理部工作人员 | D104: 91101240910 | E104: 116 | F104: 77.33 | G104: 46.4 | H104: 81.60 | I104: 32.64 | J104: 79.04 | K104: 进入体检
A105: 103 | B105: 陶媛 | C105: 06城乡管理部工作人员 | D105: 91101233510 | E105: 104 | F105: 69.33 | G105: 41.6 | H105: 88.60 | I105: 35.44 | J105: 77.04 | K105: 进入体检
A106: 104 | B106: 周艺苑 | C106: 06城乡管理部工作人员 | D106: 91101240912 | E106: 110 | F106: 73.33 | G106: 44 | H106: 81.80 | I106: 32.72 | J106: 76.72 | K106: 进入体检
A107: 105 | B107: 胡伟伟 | C107: 06城乡管理部工作人员 | D107: 91101233520 | E107: 104.5 | F107: 69.67 | G107: 41.8 | H107: 84.80 | I107: 33.92 | J107: 75.72 | K107: 进入体检
A108: 106 | B108: 黄缘 | C108: 06城乡管理部工作人员 | D108: 91101240529 | E108: 104.5 | F108: 69.67 | G108: 41.8 | H108: 83.60 | I108: 33.44 | J108: 75.24 | K108: 进入体检
A109: 107 | B109: 胡伟绩 | C109: 06城乡管理部工作人员 | D109: 91101241115 | E109: 103 | F109: 68.67 | G109: 41.2 | H109: 85.00 | I109: 34 | J109: 75.2 | K109: 进入体检
A110: 108 | B110: 周晓灵 | C110: 06城乡管理部工作人员 | D110: 91101240225 | E110: 105 | F110: 70.00 | G110: 42 | H110: 82.60 | I110: 33.04 | J110: 75.04 | K110: 进入体检
A111: 109 | B111: 马欣 | C111: 06城乡管理部工作人员 | D111: 91101240410 | E111: 102 | F111: 68.00 | G111: 40.8 | H111: 85.40 | I111: 34.16 | J111: 74.96 | K111: 进入体检
A112: 110 | B112: 付彬廷 | C112: 06城乡管理部工作人员 | D112: 91101240317 | E112: 102.5 | F112: 68.33 | G112: 41 | H112: 83.40 | I112: 33.36 | J112: 74.36 | K112: 进入体检
A113: 111 | B113: 孙大盛 | C113: 06城乡管理部工作人员 | D113: 91101240704 | E113: 105 | F113: 70.00 | G113: 42 | H113: 80.40 | I113: 32.16 | J113: 74.16 | K113: 进入体检
A114: 112 | B114: 伍崇丽 | C114: 06城乡管理部工作人员 | D114: 91101240807 | E114: 103.5 | F114: 69.00 | G114: 41.4 | H114: 81.20 | I114: 32.48 | J114: 73.88
A115: 113 | B115: 郑飞云 | C115: 06城乡管理部工作人员 | D115: 91101233226 | E115: 100.5 | F115: 67.00 | G115: 40.2 | H115: 83.80 | I115: 33.52 | J115: 73.72
A116: 114 | B116: 杨桂林 | C116: 06城乡管理部工作人员 | D116: 91101233508 | E116: 102.5 | F116: 68.33 | G116: 41 | H116: 80.80 | I116: 32.32 | J116: 73.32
A117: 115 | B117: 黄妞 | C117: 06城乡管理部工作人员 | D117: 91101233214 | E117: 101 | F117: 67.33 | G117: 40.4 | H117: 81.80 | I117: 32.72 | J117: 73.12
A118: 116 | B118: 苏前平 | C118: 06城乡管理部工作人员 | D118: 91101240109 | E118: 101 | F118: 67.33 | G118: 40.4 | H118: 81.40 | I118: 32.56 | J118: 72.96
A119: 117 | B119: 吴茜 | C119: 06城乡管理部工作人员 | D119: 91101240917 | E119: 100.5 | F119: 67.00 | G119: 40.2 | H119: 81.80 | I119: 32.72 | J119: 72.92
A120: 118 | B120: 赵旭 | C120: 06城乡管理部工作人员 | D120: 91101241111 | E120: 97.5 | F120: 65.00 | G120: 39 | H120: 84.00 | I120: 33.6 | J120: 72.6
A121: 119 | B121: 陈翠萍 | C121: 06城乡管理部工作人员 | D121: 91101240303 | E121: 98.5 | F121: 65.67 | G121: 39.4 | H121: 82.80 | I121: 33.12 | J121: 72.52
A122: 120 | B122: 陈科宇 | C122: 06城乡管理部工作人员 | D122: 91101233521 | E122: 99 | F122: 66.00 | G122: 39.6 | H122: 81.20 | I122: 32.48 | J122: 72.08
A123: 121 | B123: 肖鹏 | C123: 06城乡管理部工作人员 | D123: 91101240624 | E123: 101 | F123: 67.33 | G123: 40.4 | H123: 78.80 | I123: 31.52 | J123: 71.92
A124: 122 | B124: 张维 | C124: 06城乡管理部工作人员 | D124: 91101240211 | E124: 98 | F124: 65.33 | G124: 39.2 | H124: 81.60 | I124: 32.64 | J124: 71.84
A125: 123 | B125: 母华智 | C125: 06城乡管理部工作人员 | D125: 91101233321 | E125: 98 | F125: 65.33 | G125: 39.2 | H125: 80.20 | I125: 32.08 | J125: 71.28
A126: 124 | B126: 刘华 | C126: 06城乡管理部工作人员 | D126: 91101240129 | E126: 97.5 | F126: 65.00 | G126: 39 | H126: 80.20 | I126: 32.08 | J126: 71.08
A127: 125 | B127: 陈付云 | C127: 06城乡管理部工作人员 | D127: 91101240701 | E127: 97.5 | F127: 65.00 | G127: 39 | H127: 80.00 | I127: 32 | J127: 71
A128: 126 | B128: 李发高 | C128: 06城乡管理部工作人员 | D128: 91101240829 | E128: 98.5 | F128: 65.67 | G128: 39.4 | H128: 78.60 | I128: 31.44 | J128: 70.84
A129: 127 | B129: 夏佰萍 | C129: 06城乡管理部工作人员 | D129: 91101240117 | E129: 97.5 | F129: 65.00 | G129: 39 | H129: 77.40 | I129: 30.96 | J129: 69.96
A130: 128 | B130: 吴先桢 | C130: 06城乡管理部工作人员 | D130: 91101233323 | E130: 103.5 | F130: 69.00 | G130: 41.4 | H130: 缺考 | I130: 自动放弃，取消进入下一环节资格
A131: 129 | B131: 徐鹏飞 | C131: 06城乡管理部工作人员 | D131: 91101240728 | E131: 103 | F131: 68.67 | G131: =F131*0.6 -> 41.2 | H131: 缺考 | I131: 自动放弃，取消进入下一环节资格
A132: 130 | B132: 徐铭蟑 | C132: 06城乡管理部工作人员 | D132: 91101240511 | E132: 100 | F132: 66.67 | G132: 40 | H132: 缺考 | I132: 自动放弃，取消进入下一环节资格
A133: 131 | B133: 侯倩 | C133: 06城乡管理部工作人员 | D133: 91101233225 | E133: 97.5 | F133: 65.00 | G133: 39 | H133: 缺考 | I133: 自动放弃，取消进入下一环节资格
A134: 132 | B134: 曾瑜 | C134: 07城乡管理部工作人员 | D134: 91101242216 | E134: 106 | F134: 70.67 | G134: 42.4 | H134: 84.80 | I134: =H134*0.4 -> 33.92 | J134: =G134+I134 -> 76.32 | K134: 进入体检
A135: 133 | B135: 石艳 | C135: 07城乡管理部工作人员 | D135: 91101242809 | E135: 104.5 | F135: 69.67 | G135: 41.8 | H135: 82.80 | I135: 33.12 | J135: 74.92 | K135: 进入体检
A136: 134 | B136: 陈佳丽 | C136: 07城乡管理部工作人员 | D136: 91101242730 | E136: 102 | F136: 68.00 | G136: 40.8 | H136: 82.80 | I136: 33.12 | J136: 73.92 | K136: 进入体检
A137: 135 | B137: 陈阳 | C137: 07城乡管理部工作人员 | D137: 91101242304 | E137: 100.5 | F137: 67.00 | G137: 40.2 | H137: 84.20 | I137: 33.68 | J137: 73.88 | K137: 进入体检
A138: 136 | B138: 杨春荣 | C138: 07城乡管理部工作人员 | D138: 91101241602 | E138: 101 | F138: 67.33 | G138: 40.4 | H138: 83.40 | I138: 33.36 | J138: 73.76 | K138: 进入体检
A139: 137 | B139: 吴亚 | C139: 07城乡管理部工作人员 | D139: 91101242102 | E139: 102.5 | F139: 68.33 | G139: 41 | H139: 81.40 | I139: 32.56 | J139: 73.56 | K139: 进入体检
A140: 138 | B140: 王凤玲 | C140: 07城乡管理部工作人员 | D140: 91101241408 | E140: 103 | F140: 68.67 | G140: 41.2 | H140: 80.80 | I140: 32.32 | J140: 73.52 | K140: 进入体检
A141: 139 | B141: 刘宸娴 | C141: 07城乡管理部工作人员 | D141: 91101242824 | E141: 103 | F141: 68.67 | G141: 41.2 | H141: 79.60 | I141: 31.84 | J141: 73.04 | K141: 进入体检
A142: 140 | B142: 李明辉 | C142: 07城乡管理部工作人员 | D142: 91101242402 | E142: 99.5 | F142: 66.33 | G142: 39.8 | H142: 82.80 | I142: 33.12 | J142: 72.92 | K142: 进入体检
A143: 141 | B143: 李杰 | C143: 07城乡管理部工作人员 | D143: 91101242608 | E143: 98.5 | F143: 65.67 | G143: 39.4 | H143: 83.60 | I143: 33.44 | J143: 72.84 | K143: 进入体检
A144: 142 | B144: 吴天航 | C144: 07城乡管理部工作人员 | D144: 91101242107 | E144: 97.5 | F144: 65.00 | G144: 39 | H144: 84.20 | I144: 33.68 | J144: 72.68
A145: 143 | B145: 江禄梅 | C145: 07城乡管理部工作人员 | D145: 91101241429 | E145: 99.5 | F145: 66.33 | G145: 39.8 | H145: 81.80 | I145: 32.72 | J145: 72.52
A146: 144 | B146: 冯宇 | C146: 07城乡管理部工作人员 | D146: 91101241325 | E146: 100 | F146: 66.67 | G146: 40 | H146: 81.20 | I146: 32.48 | J146: 72.48
A147: 145 | B147: 谢茂 | C147: 07城乡管理部工作人员 | D147: 91101241514 | E147: 99.5 | F147: 66.33 | G147: 39.8 | H147: 81.40 | I147: 32.56 | J147: 72.36
A148: 146 | B148: 王忠杰 | C148: 07城乡管理部工作人员 | D148: 91101242813 | E148: 99.5 | F148: 66.33 | G148: 39.8 | H148: 81.40 | I148: 32.56 | J148: 72.36
A149: 147 | B149: 陈璐 | C149: 07城乡管理部工作人员 | D149: 91101242406 | E149: 98.5 | F149: 65.67 | G149: 39.4 | H149: 81.40 | I149: 32.56 | J149: 71.96
A150: 148 | B150: 陈乙娇 | C150: 07城乡管理部工作人员 | D150: 91101241918 | E150: 98.5 | F150: 65.67 | G150: 39.4 | H150: 80.80 | I150: 32.32 | J150: 71.72
A151: 149 | B151: 卢小燕 | C151: 07城乡管理部工作人员 | D151: 91101242027 | E151: 98 | F151: 65.33 | G151: 39.2 | H151: 79.40 | I151: 31.76 | J151: 70.96
A152: 150 | B152: 杨通敏 | C152: 07城乡管理部工作人员 | D152: 91101242230 | E152: 98.5 | F152: 65.67 | G152: 39.4 | H152: 78.80 | I152: 31.52 | J152: 70.92
A153: 151 | B153: 曹秋栗 | C153: 07城乡管理部工作人员 | D153: 91101241430 | E153: 97.5 | F153: 65.00 | G153: 39 | H153: 79.80 | I153: 31.92 | J153: 70.92
A154: 152 | B154: 徐沛东 | C154: 07城乡管理部工作人员 | D154: 91101241512 | E154: 96.5 | F154: 64.33 | G154: 38.6 | H154: 80.80 | I154: 32.32 | J154: 70.92
A155: 153 | B155: 李天娇 | C155: 07城乡管理部工作人员 | D155: 91101242725 | E155: 98 | F155: 65.33 | G155: 39.2 | H155: 79.00 | I155: 31.6 | J155: 70.8
A156: 154 | B156: 王成佳 | C156: 07城乡管理部工作人员 | D156: 91101241409 | E156: 96.5 | F156: 64.33 | G156: 38.6 | H156: 79.60 | I156: 31.84 | J156: 70.44
A157: 155 | B157: 杨健 | C157: 07城乡管理部工作人员 | D157: 91101241229 | E157: 97.5 | F157: 65.00 | G157: 39 | H157: 78.20 | I157: 31.28 | J157: 70.28
A158: 156 | B158: 钱飘 | C158: 07城乡管理部工作人员 | D158: 91101243017 | E158: 98 | F158: 65.33 | G158: 39.2 | H158: 77.60 | I158: 31.04 | J158: 70.24
A159: 157 | B159: 黄美清 | C159: 07城乡管理部工作人员 | D159: 91101242018 | E159: 96.5 | F159: 64.33 | G159: 38.6 | H159: 74.00 | I159: 29.6 | J159: 68.2
A160: 158 | B160: 张毅 | C160: 07城乡管理部工作人员 | D160: 91101241830 | E160: 98.5 | F160: 65.67 | G160: 39.4 | H160: 20.00 | I160: 8 | J160: 47.4
A161: 159 | B161: 刘丹斓 | C161: 07城乡管理部工作人员 | D161: 91101242926 | E161: 104 | F161: =E161*100/150 -> 69.33 | G161: 41.6 | H161: 缺考 | I161: 自动放弃，取消进入下一环节资格
A162: 160 | B162: 王庆锋 | C162: 07城乡管理部工作人员 | D162: 91101242927 | E162: 102 | F162: 68.00 | G162: 40.8 | H162: 缺考 | I162: 自动放弃，取消进入下一环节资格
A163: 161 | B163: 赵雪 | C163: 07城乡管理部工作人员 | D163: 91101242511 | E163: 97 | F163: 64.67 | G163: 38.8 | H163: 缺考 | I163: 自动放弃，取消进入下一环节资格
A164: 162 | B164: 方润宇 | C164: 08城乡管理部工作人员 | D164: 91101243206 | E164: 102 | F164: 68.00 | G164: 40.8 | H164: 83.4 | I164: =H164*0.4 -> 33.36 | J164: =G164+I164 -> 74.16 | K164: 进入体检
A165: 163 | B165: 李涛涛 | C165: 08城乡管理部工作人员 | D165: 91101243209 | E165: 100.5 | F165: 67.00 | G165: 40.2 | H165: 84.6 | I165: 33.84 | J165: 74.04
A166: 164 | B166: 张雪珂 | C166: 08城乡管理部工作人员 | D166: 91101243207 | E166: 100 | F166: 66.67 | G166: 40 | H166: 80 | I166: 32 | J166: 72
A167: 165 | B167: 涂滢丹 | C167: 09经济服务部工作人员 | D167: 91101243223 | E167: 107.5 | F167: 71.67 | G167: 43 | H167: 83.60 | I167: 33.44 | J167: 76.44 | K167: 进入体检
A168: 166 | B168: 康鹏燕 | C168: 09经济服务部工作人员 | D168: 91101260611 | E168: 107.5 | F168: 71.67 | G168: 43 | H168: 80.40 | I168: 32.16 | J168: 75.16 | K168: 进入体检
A169: 167 | B169: 葛玉生 | C169: 09经济服务部工作人员 | D169: 91101260108 | E169: 107.5 | F169: 71.67 | G169: 43 | H169: 79.20 | I169: 31.68 | J169: 74.68 | K169: 进入体检
A170: 168 | B170: 何利达 | C170: 09经济服务部工作人员 | D170: 91101260207 | E170: 115 | F170: 76.67 | G170: 46 | H170: 71.40 | I170: 28.56 | J170: 74.56 | K170: 进入体检
A171: 169 | B171: 陈夕梅 | C171: 09经济服务部工作人员 | D171: 91101260408 | E171: 102 | F171: 68.00 | G171: 40.8 | H171: 84.20 | I171: 33.68 | J171: 74.48 | K171: 进入体检
A172: 170 | B172: 陆欢 | C172: 09经济服务部工作人员 | D172: 91101260817 | E172: 104.5 | F172: 69.67 | G172: 41.8 | H172: 81.00 | I172: 32.4 | J172: 74.2 | K172: 进入体检
A173: 171 | B173: 高桂红 | C173: 09经济服务部工作人员 | D173: 91101260926 | E173: 101.5 | F173: 67.67 | G173: 40.6 | H173: 83.40 | I173: 33.36 | J173: 73.96 | K173: 进入体检
A174: 172 | B174: 潘兴圣 | C174: 09经济服务部工作人员 | D174: 91101260607 | E174: 105.5 | F174: 70.33 | G174: 42.2 | H174: 79.00 | I174: 31.6 | J174: 73.8 | K174: 进入体检
A175: 173 | B175: 罗波 | C175: 09经济服务部工作人员 | D175: 91101251303 | E175: 108 | F175: 72.00 | G175: 43.2 | H175: 76.40 | I175: 30.56 | J175: 73.76 | K175: 进入体检
A176: 174 | B176: 田小艺 | C176: 09经济服务部工作人员 | D176: 91101243313 | E176: 101 | F176: 67.33 | G176: 40.4 | H176: 82.60 | I176: 33.04 | J176: 73.44 | K176: 进入体检
A177: 175 | B177: 唐明杰 | C177: 09经济服务部工作人员 | D177: 91101252430 | E177: 106 | F177: 70.67 | G177: 42.4 | H177: 77.40 | I177: 30.96 | J177: 73.36
A178: 176 | B178: 朱语儿 | C178: 09经济服务部工作人员 | D178: 91101251516 | E178: 102.5 | F178: 68.33 | G178: 41 | H178: 80.40 | I178: 32.16 | J178: 73.16
A179: 177 | B179: 吴长茜 | C179: 09经济服务部工作人员 | D179: 91101250224 | E179: 101 | F179: 67.33 | G179: 40.4 | H179: 81.80 | I179: 32.72 | J179: 73.12
A180: 178 | B180: 覃怡 | C180: 09经济服务部工作人员 | D180: 91101251302 | E180: 107 | F180: 71.33 | G180: 42.8 | H180: 75.60 | I180: 30.24 | J180: 73.04
A181: 179 | B181: 赵群梅 | C181: 09经济服务部工作人员 | D181: 91101252204 | E181: 101.5 | F181: 67.67 | G181: 40.6 | H181: 81.00 | I181: 32.4 | J181: 73
A182: 180 | B182: 李倩 | C182: 09经济服务部工作人员 | D182: 91101251919 | E182: 102.5 | F182: 68.33 | G182: 41 | H182: 79.80 | I182: 31.92 | J182: 72.92
A183: 181 | B183: 唐冉 | C183: 09经济服务部工作人员 | D183: 91101250727 | E183: 106 | F183: 70.67 | G183: 42.4 | H183: 76.00 | I183: 30.4 | J183: 72.8
A184: 182 | B184: 陈海海 | C184: 09经济服务部工作人员 | D184: 91101250706 | E184: 101 | F184: 67.33 | G184: 40.4 | H184: 80.20 | I184: 32.08 | J184: 72.48
A185: 183 | B185: 李雪 | C185: 09经济服务部工作人员 | D185: 91101260315 | E185: 103 | F185: 68.67 | G185: 41.2 | H185: 78.00 | I185: 31.2 | J185: 72.4
A186: 184 | B186: 张钰 | C186: 09经济服务部工作人员 | D186: 91101251026 | E186: 101.5 | F186: 67.67 | G186: 40.6 | H186: 79.20 | I186: 31.68 | J186: 72.28
A187: 185 | B187: 宫伶 | C187: 09经济服务部工作人员 | D187: 91101243307 | E187: 101.5 | F187: 67.67 | G187: 40.6 | H187: 78.80 | I187: 31.52 | J187: 72.12
A188: 186 | B188: 王玉琴 | C188: 09经济服务部工作人员 | D188: 91101251610 | E188: 101 | F188: 67.33 | G188: 40.4 | H188: 79.20 | I188: 31.68 | J188: 72.08
A189: 187 | B189: 贾阳杨 | C189: 09经济服务部工作人员 | D189: 91101260615 | E189: 103 | F189: 68.67 | G189: 41.2 | H189: 77.00 | I189: 30.8 | J189: 72
A190: 188 | B190: 赖冰雯 | C190: 09经济服务部工作人员 | D190: 91101243403 | E190: 102.5 | F190: 68.33 | G190: 41 | H190: 77.20 | I190: 30.88 | J190: 71.88
A191: 189 | B191: 姚守敏 | C191: 09经济服务部工作人员 | D191: 91101252407 | E191: 103 | F191: 68.67 | G191: 41.2 | H191: 76.60 | I191: 30.64 | J191: 71.84
A192: 190 | B192: 吴绍依 | C192: 09经济服务部工作人员 | D192: 91101251329 | E192: 102.5 | F192: 68.33 | G192: 41 | H192: 77.00 | I192: 30.8 | J192: 71.8
A193: 191 | B193: 胡思华 | C193: 09经济服务部工作人员 | D193: 91101251226 | E193: 103.5 | F193: 69.00 | G193: 41.4 | H193: 75.80 | I193: 30.32 | J193: 71.72
A194: 192 | B194: 曾小林 | C194: 09经济服务部工作人员 | D194: 91101260406 | E194: 101 | F194: 67.33 | G194: 40.4 | H194: 77.80 | I194: 31.12 | J194: 71.52
A195: 193 | B195: 宋骁 | C195: 09经济服务部工作人员 | D195: 91101250412 | E195: 101 | F195: 67.33 | G195: =F195*0.6 -> 40.4 | H195: 76.80 | I195: 30.72 | J195: 71.12
A196: 194 | B196: 刘远飞 | C196: 09经济服务部工作人员 | D196: 91101243521 | E196: 101 | F196: 67.33 | G196: 40.4 | H196: 76.00 | I196: 30.4 | J196: 70.8
A197: 195 | B197: 黄天佑 | C197: 09经济服务部工作人员 | D197: 91101243404 | E197: 102 | F197: 68.00 | G197: 40.8 | H197: 72.00 | I197: 28.8 | J197: 69.6
A198: 196 | B198: 刘昱涵 | C198: 09经济服务部工作人员 | D198: 91101251723 | E198: 102.5 | F198: 68.33 | G198: 41 | H198: 缺考 | I198: 自动放弃，取消进入下一环节资格
A199: 197 | B199: 李媛媛 | C199: 09经济服务部工作人员 | D199: 91101260324 | E199: 101 | F199: 67.33 | G199: 40.4 | H199: 缺考 | I199: 自动放弃，取消进入下一环节资格
A200: 198 | B200: 张丹 | C200: 10经济服务部工作人员 | D200: 91101261313 | E200: 86.50 | F200: 57.67 | G200: 34.60 | H200: 81.00 | I200: =H200*0.4 -> 32.40 | J200: =G200+I200 -> 67.00 | K200: 进入体检
... 116 more rows

Sheet Sheet1
